{"text_format":"1","workbook":"xlsx","n_sheets":1,"sheets":["Blad1"],"not_rendered":{"charts":0,"images":0,"macros":1,"external_links":0,"defined_names":1,"comments":0,"pivot_tables":0},"unopened":[],"bounds":{"document_bytes":16777216,"sheet_cells":100000,"rows_first":2000,"rows_last":500,"rows_between":2000,"halvings":0,"cell_chars":16384,"cell_head_chars":4096},"cells_cut":0,"cells_raw":0,"read":"whole","date_system":"1900"}

{"sheet":"Blad1","index":0,"n_rows":11,"n_cols":23,"rows_kept":11,"cut":false,"hidden":false,"merged":[[1,12,1,16]]}
[null,null,null,"Oplossing 1 ",null,null,null,null,null,null,null,null,null,null,null,"Oplossing 2 ",null,null,null,null,"MijnLijst","Blad1","Keuzelijst"]
[null,null,null,null,null,null,null,null,null,null,null,null,"Met eenmalige validatie keuze",null,null,null,null,null,null,null,1,{"$f":"IF(ISERROR(VLOOKUP(U2,INDIRECT($V$1&\"!$P$4:$P$11\"),1,0)),U2,\"\")","v":1},{"$f":"IFERROR(SMALL($V$2:$V$10,ROW()-1),\"\")","v":1}]
[null,null,"Naam",null,"Bus nr.","Stoel nr.","Plaats code",null,null,null,null,null,"Naam",null,"Bus nr.","Stoel nr.","Plaats code",null,null,null,2,{"$f":"IF(ISERROR(VLOOKUP(U3,INDIRECT($V$1&\"!$P$4:$P$11\"),1,0)),U3,\"\")","v":2},{"$f":"IFERROR(SMALL($V$2:$V$10,ROW()-1),\"\")","v":2}]
[null,null,"Jan Klaassen",null,1,7,{"$f":"CONCATENATE(E4,\" \",F4)","v":"1 7"},"Bezet door: Mooi Antwerpen",null,null,null,null,"Jan Klaassen",null,1,6,{"$f":"CONCATENATE(O4,\" \",P4)","v":"1 6"},null,null,null,3,3,3]
[null,null,"Sonja Blond",null,1,5,{"$f":"CONCATENATE(E5,\" \",F5)","v":"1 5"},null,null,null,null,null,"Sonja Blond",null,1,5,{"$f":"CONCATENATE(O5,\" \",P5)","v":"1 5"},null,null,null,4,4,4]
[null,null,"Pietje Puk",null,1,1,"1 1",null,null,null,null,null,"Pietje Puk",null,1,null,"1 ",null,null,null,5,"",7]
[null,null,"Lekker Touren",null,1,2,"1 2",null,null,null,null,null,"Lekker Touren",null,1,null,"1 ",null,null,null,6,"",8]
[null,null,"Oude Vrouw",null,1,8,"1 8",null,null,null,null,null,"Oude Vrouw",null,1,null,"1 ",null,null,null,7,7,""]
[null,null,"Samen Uit",null,1,6,"1 6",null,null,null,null,null,"Samen Uit",null,1,null,"1 ",null,null,null,8,8,""]
[null,null,"Mooi Antwerpen",null,1,7,"1 7",null,null,null,null,null,"Mooi Antwerpen",null,1,null,"1 "]
[null,null,"Eindelijk Lente",null,1,4,"1 4",null,null,null,null,null,"Eindelijk Lente",null,1,null,"1 "]